[Event "Portugal Open 2020"]
[Site "Lisbon"]
[Date "2020.01.25"]
[Round "1.26"]
[White "Alshameary Puente, Ismael"]
[Black "Terwagne, Bertrand"]
[Result "1-0"]
[ECO "D35"]
[WhiteElo "2385"]
[BlackElo "1796"]
[Annotator "NA"]
[PlyCount "43"]
[EventDate "2020.01.25"]
[EventType "swiss"]
[EventCountry "POR"]
[SourceTitle "playchess.com"]
[Source "ChessBase"]
[SourceQuality "1"]
[TimeControl "5400+30"]

1. d4 {[%emt 0:00:00]} Nf6 {[%emt 0:00:00]} 2. c4 {[%emt 0:00:00]} e6 {[%emt 0:00:00]} 3. Nc3 {[%emt 0:00:00]} d5 {[%emt 0:00:00]} 4. cxd5 {[%emt 0:00:00]} Nxd5 {[%emt 0:00:21]} 5. e4 {[%emt 0:00:06]} Nxc3 {[%emt 0:00:10]} 6. bxc3 {[%emt 0:00:03]} c5 {[%emt 0:00:15]} 7. Rb1 {[%emt 0:00:24]} g6 {[%emt 0:06:46]} 8. h4 {[%emt 0:02:04]} cxd4 {[%emt 0:11:35]} 9. cxd4 {[%emt 0:00:42]} Bg7 {[%emt 0:00:29]} 10. Nf3 {[%emt 0:04:42]} Nc6 {[%emt 0:08:42]} 11. Bb5 {[%emt 0:01:18]} O-O {[%emt 0:01:22]} 12. Be3 {[%emt 0:04:22]} Qc7 {[%emt 0:13:47]} 13. Qc1 {[%emt 0:03:04]} Qd6 {[%emt 0:07:22]} 14. e5 {[%emt 0:01:25]} Qc7 {[%emt 0:05:22]} 15. Bh6 {[%emt 0:02:49]} Qa5+ {[%emt 0:22:15]} 16. Kf1 {[%emt 0:01:39]} f6 {[%emt 0:07:16]} 17. Bxg7 {[%emt 0:00:50]} Kxg7 {[%emt 0:00:24]} 18. h5 {[%emt 0:00:18]} gxh5 {[%emt 0:06:14]} 19. Rxh5 {[%emt 0:00:20]} Qxa2 {[%emt 0:02:11]} 20. Qh6+ {[%emt 0:07:43]} Kf7 {[%emt 0:00:10]} 21. Rc1 {[%emt 0:00:11]} Ke7 {[%emt 0:03:01]} 22. Qg7+ {[%emt 0:00:44]} 1-0

[Event "Portugal Open 2020"]
[Site "Lisbon"]
[Date "2020.01.25"]
[Round "1.30"]
[White "Mihajlov, Sebastian"]
[Black "Fanha, Paulo"]
[Result "1/2-1/2"]
[ECO "B01"]
[WhiteElo "2374"]
[BlackElo "1766"]
[Annotator "NA"]
[PlyCount "67"]
[EventDate "2020.01.25"]
[EventType "swiss"]
[EventCountry "POR"]
[SourceTitle "playchess.com"]
[Source "ChessBase"]
[SourceQuality "1"]
[TimeControl "5400+30"]

1. e4 {[%emt 0:00:00]} d5 {[%emt 0:00:00]} 2. exd5 {[%emt 0:00:00]} Qxd5 {[%emt 0:00:00]} 3. Nc3 {[%emt 0:00:02]} Qd6 {[%emt 0:00:00]} 4. d4 {[%emt 0:00:06]} Nf6 {[%emt 0:00:00]} 5. Nf3 {[%emt 0:00:10]} c6 {[%emt 0:00:01]} 6. Ne5 {[%emt 0:00:44]} Bf5 {[%emt 0:02:15]} 7. Bc4 {[%emt 0:02:04]} e6 {[%emt 0:00:56]} 8. O-O {[%emt 0:02:19]} Qc7 {[%emt 0:01:42]} 9. g4 {[%emt 0:02:16]} Bg6 {[%emt 0:00:35]} 10. f4 {[%emt 0:00:29]} Bd6 {[%emt 0:08:51]} 11. Qe2 {[%emt 0:04:00]} Nbd7 {[%emt 0:03:44]} 12. f5 {[%emt 0:04:25]} Nxe5 {[%emt 0:01:22]} 13. dxe5 {[%emt 0:00:06]} Bxe5 {[%emt 0:00:13]} 14. fxg6 {[%emt 0:01:40]} hxg6 {[%emt 0:00:55]} 15. Rf2 {[%emt 0:00:40]} Bd4 {[%emt 0:05:24]} 16. Be3 {[%emt 0:00:06]} Bxe3 {[%emt 0:00:39]} 17. Qxe3 {[%emt 0:00:05]} Nxg4 {[%emt 0:00:19]} 18. Qf4 {[%emt 0:00:04]} Qxf4 {[%emt 0:00:23]} 19. Rxf4 {[%emt 0:00:04]} Ne5 {[%emt 0:01:36]} 20. Bb3 {[%emt 0:02:07]} Ke7 {[%emt 0:02:36]} 21. Re1 {[%emt 0:00:36]} Rh5 {[%emt 0:00:29]} 22. Ne4 {[%emt 0:02:28]} Rah8 {[%emt 0:07:20]} 23. Nd2 {[%emt 0:12:00]} Rxh2 {[%emt 0:04:28]} 24. Rxe5 {[%emt 0:00:15]} Rh1+ {[%emt 0:01:41]} 25. Kf2 {[%emt 0:01:00]} R8h2+ {[%emt 0:00:19]} 26. Kg3 {[%emt 0:00:38]} Rxd2 {[%emt 0:02:22]} 27. Rf2 {[%emt 0:01:26]} Rxf2 {[%emt 0:04:17]} 28. Kxf2 {[%emt 0:00:05]} Rd1 {[%emt 0:00:16]} 29. Ke2 {[%emt 0:00:40]} Rd6 {[%emt 0:00:17]} 30. c4 {[%emt 0:00:04]} Rd4 {[%emt 0:01:43]} 31. Ra5 {[%emt 0:03:18]} a6 {[%emt 0:00:27]} 32. Ke3 {[%emt 0:00:05]} Rh4 {[%emt 0:00:15]} 33. Kd3 {[%emt 0:01:07]} f6 {[%emt 0:01:16]} 34. c5 {[%emt 0:02:07]} 1/2-1/2

[Event "Portugal Open 2020"]
[Site "Lisbon"]
[Date "2020.01.25"]
[Round "1.33"]
[White "Barreiros, Cilauro Neves"]
[Black "Soham Das"]
[Result "0-1"]
[ECO "B50"]
[WhiteElo "1759"]
[BlackElo "2355"]
[Annotator "NA"]
[PlyCount "62"]
[EventDate "2020.01.25"]
[EventType "swiss"]
[EventCountry "POR"]
[SourceTitle "playchess.com"]
[Source "ChessBase"]
[SourceQuality "1"]
[TimeControl "5400+30"]

1. e4 {[%emt 0:00:00]} c5 {[%emt 0:00:00]} 2. Nf3 {[%emt 0:00:00]} d6 {[%emt 0:00:00]} 3. Nc3 {[%emt 0:00:04]} a6 {[%emt 0:00:00]} 4. a4 {[%emt 0:00:40]} Nf6 {[%emt 0:00:35]} 5. Be2 {[%emt 0:02:48]} Nc6 {[%emt 0:02:35]} 6. h3 {[%emt 0:01:46]} g6 {[%emt 0:00:39]} 7. d4 {[%emt 0:02:37]} cxd4 {[%emt 0:00:08]} 8. Nxd4 {[%emt 0:00:06]} Bg7 {[%emt 0:00:33]} 9. Be3 {[%emt 0:04:51]} O-O {[%emt 0:00:20]} 10. Qd2 {[%emt 0:02:04]} Bd7 {[%emt 0:01:38]} 11. f4 {[%emt 0:07:30]} Nxd4 {[%emt 0:02:58]} 12. Bxd4 {[%emt 0:01:29]} Bc6 {[%emt 0:00:15]} 13. Bf3 {[%emt 0:03:28]} Re8 {[%emt 0:04:04]} 14. O-O {[%emt 0:01:24]} e5 {[%emt 0:00:25]} 15. fxe5 {[%emt 0:03:50]} dxe5 {[%emt 0:00:07]} 16. Be3 {[%emt 0:00:33]} Qa5 {[%emt 0:02:03]} 17. Qf2 {[%emt 0:02:42]} Qb4 {[%emt 0:01:27]} 18. Ra3 {[%emt 0:15:24]} Kh8 {[%emt 0:05:59]} 19. Bc5 {[%emt 0:07:48]} Qc4 {[%emt 0:00:27]} 20. Qe3 {[%emt 0:16:00]} Nd7 {[%emt 0:03:46]} 21. Bd6 {[%emt 0:05:34]} Re6 {[%emt 0:00:02]} 22. Rd1 {[%emt 0:01:28]} Rxd6 {[%emt 0:00:42]} 23. Rxd6 {[%emt 0:00:58]} Bf8 {[%emt 0:00:01]} 24. Be2 {[%emt 0:11:46]} Qb4 {[%emt 0:00:24]} 25. Rxc6 {[%emt 0:02:25]} bxc6 {[%emt 0:00:01]} 26. Rb3 {[%emt 0:00:35]} Qxb3 {[%emt 0:00:15]} 27. cxb3 {[%emt 0:00:08]} Bc5 {[%emt 0:00:01]} 28. Qxc5 {[%emt 0:00:41]} Nxc5 {[%emt 0:00:01]} 29. Bc4 {[%emt 0:00:48]} Rb8 {[%emt 0:00:08]} 30. Bxf7 {[%emt 0:00:14]} Nxb3 {[%emt 0:00:07]} 31. Kf2 {[%emt 0:01:45]} Rf8 {[%emt 0:00:02]} 0-1

[Event "Portugal Open 2020"]
[Site "Lisbon"]
[Date "2020.01.25"]
[Round "1.34"]
[White "Plichta, Kamil"]
[Black "Goncalves, Samuel Jesus P"]
[Result "1-0"]
[ECO "A05"]
[WhiteElo "2353"]
[BlackElo "1758"]
[Annotator "NA"]
[PlyCount "45"]
[EventDate "2020.01.25"]
[EventType "swiss"]
[EventCountry "POR"]
[SourceTitle "playchess.com"]
[Source "ChessBase"]
[SourceQuality "1"]
[TimeControl "5400+30"]

1. Nf3 {[%emt 0:00:00]} Nf6 {[%emt 0:00:02]} 2. c4 {[%emt 0:00:01]} e6 {[%emt 0:00:54]} 3. g3 {[%emt 0:00:06]} b6 {[%emt 0:02:30]} 4. Bg2 {[%emt 0:00:07]} Bb7 {[%emt 0:00:26]} 5. O-O {[%emt 0:00:09]} Be7 {[%emt 0:02:05]} 6. b3 {[%emt 0:00:40]} O-O {[%emt 0:00:29]} 7. Bb2 {[%emt 0:00:21]} c5 {[%emt 0:00:47]} 8. Nc3 {[%emt 0:00:23]} d6 {[%emt 0:00:26]} 9. e3 {[%emt 0:01:00]} Nbd7 {[%emt 0:01:52]} 10. d4 {[%emt 0:01:11]} a6 {[%emt 0:01:07]} 11. d5 {[%emt 0:02:37]} Qc7 {[%emt 0:01:06]} 12. dxe6 {[%emt 0:01:45]} fxe6 {[%emt 0:00:05]} 13. Ng5 {[%emt 0:03:05]} Bxg2 {[%emt 0:00:18]} 14. Kxg2 {[%emt 0:00:06]} Qc6+ {[%emt 0:01:33]} 15. e4 {[%emt 0:00:25]} h6 {[%emt 0:06:24]} 16. Nxe6 {[%emt 0:00:11]} Nxe4 {[%emt 0:00:03]} 17. Qd5 {[%emt 0:00:26]} Qxd5 {[%emt 0:09:49]} 18. Nxd5 {[%emt 0:00:25]} Rf7 {[%emt 0:07:36]} 19. Bxg7 {[%emt 0:01:30]} Nf8 {[%emt 0:15:02]} 20. Bxf8 {[%emt 0:01:59]} Bxf8 {[%emt 0:00:12]} 21. Nxb6 {[%emt 0:01:12]} Re8 {[%emt 0:00:49]} 22. Nxf8 {[%emt 0:00:19]} Rexf8 {[%emt 0:00:05]} 23. f4 {[%emt 0:00:32]} 1-0

[Event "Portugal Open 2020"]
[Site "Lisbon"]
[Date "2020.01.25"]
[Round "1.35"]
[White "Guerreiro, Paulo Jorge Leitao"]
[Black "Taboas Rodriguez, Daniel"]
[Result "0-1"]
[ECO "A16"]
[WhiteElo "1757"]
[BlackElo "2348"]
[Annotator "NA"]
[PlyCount "55"]
[EventDate "2020.01.25"]
[EventType "swiss"]
[EventCountry "POR"]
[SourceTitle "playchess.com"]
[Source "ChessBase"]
[SourceQuality "1"]
[TimeControl "5400+30"]

1. c4 {[%emt 0:00:00]} Nf6 {[%emt 0:00:00]} 2. Nc3 {[%emt 0:00:07]} g6 {[%emt 0:00:00]} 3. g3 {[%emt 0:00:05]} Bg7 {[%emt 0:00:00]} 4. Bg2 {[%emt 0:00:10]} O-O {[%emt 0:00:00]} 5. d3 {[%emt 0:00:14]} e5 {[%emt 0:00:20]} 6. e3 {[%emt 0:00:19]} c6 {[%emt 0:00:44]} 7. Nf3 {[%emt 0:01:22]} Re8 {[%emt 0:00:06]} 8. O-O {[%emt 0:00:28]} d5 {[%emt 0:00:12]} 9. cxd5 {[%emt 0:02:30]} cxd5 {[%emt 0:00:04]} 10. e4 {[%emt 0:10:00]} d4 {[%emt 0:00:22]} 11. Nb1 {[%emt 0:00:12]} Nc6 {[%emt 0:00:24]} 12. a3 {[%emt 0:00:00]} Rf8 {[%emt 0:01:33]} 13. Nc3 {[%emt 0:01:18]} Re8 {[%emt 0:00:00]} 14. Nb1 {[%emt 0:01:44]} a5 {[%emt 0:00:57]} 15. Bg5 {[%emt 0:01:29]} Qb6 {[%emt 0:04:04]} 16. Qc2 {[%emt 0:02:00]} Be6 {[%emt 0:02:11]} 17. Nbd2 {[%emt 0:00:07]} Rac8 {[%emt 0:01:00]} 18. Rac1 {[%emt 0:07:40]} Nb4 {[%emt 0:06:02]} 19. Qb1 {[%emt 0:00:09]} Rxc1 {[%emt 0:00:12]} 20. Rxc1 {[%emt 0:01:06]} Ba2 {[%emt 0:00:08]} 21. Qa1 {[%emt 0:00:08]} Nxd3 {[%emt 0:00:14]} 22. Bxf6 {[%emt 0:05:56]} Bxf6 {[%emt 0:01:34]} 23. Rc2 {[%emt 0:00:08]} Be6 {[%emt 0:12:22]} 24. Bf1 {[%emt 0:03:26]} Nc5 {[%emt 0:00:35]} 25. Qc1 {[%emt 0:02:00]} Nb3 {[%emt 0:05:09]} 26. Nxb3 {[%emt 0:02:59]} Qxb3 {[%emt 0:00:06]} 27. Rc5 {[%emt 0:00:37]} Qxf3 {[%emt 0:01:05]} 28. Rc2 0-1

[Event "Portugal Open 2020"]
[Site "Lisbon"]
[Date "2020.01.25"]
[Round "1.37"]
[White "Montero Montero, Juan Jose"]
[Black "Rocha, Sergio"]
[Result "0-1"]
[ECO "B32"]
[WhiteElo "1744"]
[BlackElo "2343"]
[Annotator "NA"]
[PlyCount "58"]
[EventDate "2020.01.25"]
[EventType "swiss"]
[EventCountry "POR"]
[SourceTitle "playchess.com"]
[Source "ChessBase"]
[SourceQuality "1"]
[TimeControl "5400+30"]

1. e4 {[%emt 0:00:00]} c5 {[%emt 0:00:00]} 2. Nf3 {[%emt 0:00:00]} Nc6 {[%emt 0:00:00]} 3. d4 {[%emt 0:03:00]} cxd4 {[%emt 0:00:02]} 4. Nxd4 {[%emt 0:00:09]} Qb6 {[%emt 0:00:06]} 5. Nf3 {[%emt 0:02:50]} Nf6 {[%emt 0:00:16]} 6. Bd3 {[%emt 0:02:27]} e6 {[%emt 0:00:44]} 7. O-O {[%emt 0:06:05]} d6 {[%emt 0:01:23]} 8. a3 {[%emt 0:01:22]} Be7 9. b3 {[%emt 0:03:29]} O-O {[%emt 0:00:29]} 10. Bb2 {[%emt 0:00:11]} a6 {[%emt 0:00:04]} 11. Nbd2 {[%emt 0:02:34]} Qc7 12. Re1 Nd7 {[%emt 0:01:03]} 13. Nc4 {[%emt 0:09:50]} b5 {[%emt 0:00:25]} 14. Ncd2 {[%emt 0:01:28]} Nc5 {[%emt 0:01:36]} 15. Rc1 {[%emt 0:10:33]} Bb7 {[%emt 0:00:18]} 16. Bf1 {[%emt 0:01:35]} Rfd8 {[%emt 0:05:15]} 17. Qe2 {[%emt 0:09:32]} a5 18. e5 d5 {[%emt 0:01:44]} 19. Nd4 {[%emt 0:04:42]} b4 {[%emt 0:00:12]} 20. a4 {[%emt 0:02:24]} Bg5 {[%emt 0:01:36]} 21. Nxc6 {[%emt 0:04:36]} Qxc6 {[%emt 0:01:45]} 22. Rcd1 {[%emt 0:01:04]} Ba6 {[%emt 0:03:46]} 23. Qg4 {[%emt 0:00:45]} Bxd2 {[%emt 0:01:46]} 24. Rxd2 {[%emt 0:06:57]} Ne4 {[%emt 0:00:40]} 25. Qf4 {[%emt 0:07:08]} Bxf1 {[%emt 0:00:45]} 26. Rxf1 {[%emt 0:00:52]} Nxd2 {[%emt 0:00:17]} 27. Qxd2 {[%emt 0:00:06]} Rac8 {[%emt 0:00:34]} 28. Rc1 {[%emt 0:01:18]} d4 {[%emt 0:00:16]} 29. f4 {[%emt 0:00:55]} Qe4 {[%emt 0:00:18]} 0-1

[Event "Portugal Open 2020"]
[Site "Lisbon"]
[Date "2020.01.25"]
[Round "1.38"]
[White "Bayramov, Zaur"]
[Black "Batista, Sandro Manuel Almeid"]
[Result "1-0"]
[ECO "D41"]
[WhiteElo "2333"]
[BlackElo "1741"]
[Annotator "NA"]
[PlyCount "41"]
[EventDate "2020.01.25"]
[EventType "swiss"]
[EventCountry "POR"]
[SourceTitle "playchess.com"]
[Source "ChessBase"]
[SourceQuality "1"]
[TimeControl "5400+30"]

1. d4 {[%emt 0:00:00]} Nf6 {[%emt 0:00:57]} 2. Nf3 {[%emt 0:00:03]} e6 {[%emt 0:00:19]} 3. c4 {[%emt 0:00:54]} d5 {[%emt 0:00:50]} 4. Nc3 {[%emt 0:00:13]} c5 {[%emt 0:00:23]} 5. cxd5 {[%emt 0:00:23]} exd5 {[%emt 0:00:33]} 6. Bg5 {[%emt 0:01:18]} Be6 {[%emt 0:02:12]} 7. Qb3 {[%emt 0:10:06]} Be7 {[%emt 0:08:40]} 8. e3 {[%emt 0:07:04]} O-O {[%emt 0:02:52]} 9. Be2 {[%emt 0:08:05]} b6 {[%emt 0:10:17]} 10. O-O {[%emt 0:01:28]} c4 {[%emt 0:07:54]} 11. Qc2 {[%emt 0:01:24]} a6 {[%emt 0:01:10]} 12. Ne5 {[%emt 0:02:43]} Qc7 {[%emt 0:11:25]} 13. f4 {[%emt 0:02:51]} Nc6 {[%emt 0:01:13]} 14. f5 {[%emt 0:02:25]} Bc8 {[%emt 0:04:31]} 15. Bxf6 {[%emt 0:00:29]} Bxf6 {[%emt 0:01:00]} 16. Nxd5 {[%emt 0:00:09]} Qd6 {[%emt 0:00:55]} 17. Nxf6+ {[%emt 0:00:12]} Qxf6 {[%emt 0:00:11]} 18. Nxc6 {[%emt 0:00:07]} Qxc6 {[%emt 0:00:28]} 19. Bf3 {[%emt 0:00:07]} Qh6 {[%emt 0:00:48]} 20. Bxa8 {[%emt 0:00:09]} Qxe3+ {[%emt 0:00:29]} 21. Qf2 {[%emt 0:00:07]} 1-0

[Event "Portugal Open 2020"]
[Site "Lisbon"]
[Date "2020.01.25"]
[Round "1.39"]
[White "Dias, Antonio Alberto"]
[Black "Napoli, Nicolo"]
[Result "0-1"]
[ECO "A45"]
[WhiteElo "1732"]
[BlackElo "2333"]
[Annotator "NA"]
[PlyCount "71"]
[EventDate "2020.01.25"]
[EventType "swiss"]
[EventCountry "POR"]
[SourceTitle "playchess.com"]
[Source "ChessBase"]
[SourceQuality "1"]
[TimeControl "5400+30"]

1. d4 {[%emt 0:01:13]} Nf6 {[%emt 0:00:00]} 2. Nc3 {[%emt 0:00:54]} e6 {[%emt 0:00:00]} 3. Bg5 {[%emt 0:00:42]} h6 {[%emt 0:00:18]} 4. Bh4 {[%emt 0:00:28]} Bb4 {[%emt 0:01:11]} 5. f3 {[%emt 0:00:52]} c5 {[%emt 0:02:08]} 6. e3 {[%emt 0:00:36]} Qa5 {[%emt 0:02:25]} 7. Nge2 {[%emt 0:01:37]} Nd5 {[%emt 0:02:20]} 8. Qd2 {[%emt 0:01:47]} cxd4 {[%emt 0:05:47]} 9. exd4 {[%emt 0:00:30]} Nc6 {[%emt 0:00:07]} 10. Bf2 {[%emt 0:00:05]} b6 {[%emt 0:05:51]} 11. a3 {[%emt 0:00:07]} Ba6 {[%emt 0:01:24]} 12. Rd1 {[%emt 0:00:42]} Bxc3 {[%emt 0:02:23]} 13. Nxc3 {[%emt 0:00:09]} Nxc3 {[%emt 0:00:46]} 14. Qxc3 {[%emt 0:00:16]} Qxc3+ {[%emt 0:00:24]} 15. bxc3 {[%emt 0:00:02]} Bxf1 {[%emt 0:00:35]} 16. Rxf1 {[%emt 0:00:04]} d5 {[%emt 0:00:15]} 17. Bg3 {[%emt 0:01:37]} Na5 {[%emt 0:00:46]} 18. Ke2 {[%emt 0:05:50]} Rc8 {[%emt 0:00:38]} 19. Kd3 {[%emt 0:02:14]} Nc4 {[%emt 0:00:57]} 20. Rb1 {[%emt 0:00:51]} Kd7 {[%emt 0:00:35]} 21. Rb3 {[%emt 0:00:15]} Rc6 {[%emt 0:00:48]} 22. Rfb1 {[%emt 0:00:40]} g5 {[%emt 0:01:19]} 23. f4 {[%emt 0:02:31]} Na5 {[%emt 0:03:00]} 24. Rb4 {[%emt 0:05:06]} Rhc8 {[%emt 0:00:43]} 25. Be1 {[%emt 0:00:44]} gxf4 {[%emt 0:01:30]} 26. Bd2 {[%emt 0:00:05]} f6 {[%emt 0:03:19]} 27. Re1 {[%emt 0:00:39]} h5 {[%emt 0:01:14]} 28. Rbb1 {[%emt 0:01:26]} Ke7 {[%emt 0:02:13]} 29. Re2 {[%emt 0:00:07]} Kf7 {[%emt 0:01:40]} 30. Rf2 {[%emt 0:02:47]} e5 {[%emt 0:01:01]} 31. dxe5 {[%emt 0:00:06]} fxe5 {[%emt 0:00:04]} 32. g3 {[%emt 0:00:03]} e4+ {[%emt 0:00:28]} 33. Kd4 {[%emt 0:00:06]} Rc4+ {[%emt 0:00:50]} 34. Ke5 {[%emt 0:00:15]} Re8+ {[%emt 0:01:15]} 35. Kxd5 {[%emt 0:01:23]} Rc5+ {[%emt 0:00:08]} 36. Kd4 0-1

[Event "Portugal Open 2020"]
[Site "Lisbon"]
[Date "2020.01.25"]
[Round "1.41"]
[White "Bornand, Herbert"]
[Black "Esquivias Quintero, Luis Manuel"]
[Result "0-1"]
[ECO "A45"]
[WhiteElo "1722"]
[BlackElo "2318"]
[Annotator "NA"]
[PlyCount "42"]
[EventDate "2020.01.25"]
[EventType "swiss"]
[EventCountry "POR"]
[SourceTitle "playchess.com"]
[Source "ChessBase"]
[SourceQuality "1"]
[TimeControl "5400+30"]

1. d4 {[%emt 0:00:00]} Nf6 {[%emt 0:00:00]} 2. Nc3 {[%emt 0:01:10]} d5 {[%emt 0:00:00]} 3. Bf4 {[%emt 0:01:48]} e6 {[%emt 0:00:11]} 4. Nf3 {[%emt 0:05:57]} Bb4 {[%emt 0:00:42]} 5. a3 {[%emt 0:01:44]} Bxc3+ {[%emt 0:01:38]} 6. bxc3 {[%emt 0:02:23]} Ne4 {[%emt 0:12:20]} 7. Qd3 {[%emt 0:11:13]} b6 {[%emt 0:07:09]} 8. Nd2 {[%emt 0:09:55]} Ba6 {[%emt 0:01:38]} 9. Qe3 {[%emt 0:02:21]} Nxd2 {[%emt 0:00:40]} 10. Qxd2 {[%emt 0:03:44]} O-O {[%emt 0:07:56]} 11. g4 {[%emt 0:09:32]} c5 {[%emt 0:15:19]} 12. g5 {[%emt 0:06:02]} Nc6 {[%emt 0:03:06]} 13. h4 {[%emt 0:10:25]} cxd4 {[%emt 0:02:48]} 14. cxd4 {[%emt 0:00:13]} Re8 {[%emt 0:03:39]} 15. Be5 {[%emt 0:02:35]} Nxe5 {[%emt 0:00:37]} 16. dxe5 {[%emt 0:00:12]} Rc8 {[%emt 0:03:05]} 17. f4 {[%emt 0:09:01]} Rc5 {[%emt 0:04:14]} 18. Rh3 {[%emt 0:03:15]} Qc7 {[%emt 0:01:05]} 19. Rc1 {[%emt 0:01:51]} Rc8 {[%emt 0:00:15]} 20. Kd1 {[%emt 0:00:30]} Bb5 {[%emt 0:05:47]} 21. c3 {[%emt 0:02:13]} d4 {[%emt 0:01:17]} 0-1

[Event "Portugal Open 2020"]
[Site "Lisbon"]
[Date "2020.01.25"]
[Round "1.42"]
[White "Veiga, Jose Francisco R P N"]
[Black "Barrento, Jorge Maria Lopes"]
[Result "1-0"]
[ECO "C40"]
[WhiteElo "2312"]
[BlackElo "1715"]
[Annotator "NA"]
[PlyCount "39"]
[EventDate "2020.01.25"]
[EventType "swiss"]
[EventCountry "POR"]
[SourceTitle "playchess.com"]
[Source "ChessBase"]
[SourceQuality "1"]
[TimeControl "5400+30"]

1. e4 {[%emt 0:00:00]} e5 {[%emt 0:03:53]} 2. Nf3 {[%emt 0:00:00]} Qe7 {[%emt 0:00:16]} 3. Nc3 {[%emt 0:00:36]} c6 {[%emt 0:00:04]} 4. g3 {[%emt 0:00:25]} Nf6 {[%emt 0:01:28]} 5. Bg2 {[%emt 0:01:01]} g6 {[%emt 0:01:59]} 6. O-O {[%emt 0:00:11]} Bg7 {[%emt 0:00:02]} 7. d4 {[%emt 0:00:51]} d6 {[%emt 0:00:19]} 8. h3 {[%emt 0:01:04]} O-O {[%emt 0:06:44]} 9. a4 {[%emt 0:00:36]} a5 {[%emt 0:00:47]} 10. Re1 {[%emt 0:00:36]} Qc7 {[%emt 0:00:32]} 11. Bg5 {[%emt 0:02:51]} h6 {[%emt 0:08:59]} 12. Be3 {[%emt 0:00:06]} Nbd7 {[%emt 0:03:48]} 13. Qd2 {[%emt 0:00:59]} Kh7 {[%emt 0:00:59]} 14. Rad1 {[%emt 0:00:52]} Re8 {[%emt 0:01:55]} 15. b3 {[%emt 0:08:17]} Nf8 {[%emt 0:02:53]} 16. d5 {[%emt 0:05:36]} Rd8 {[%emt 0:04:06]} 17. dxc6 {[%emt 0:04:14]} bxc6 {[%emt 0:03:40]} 18. Nxe5 {[%emt 0:01:13]} Bxh3 {[%emt 0:04:26]} 19. Nxg6 {[%emt 0:00:39]} Bg4 {[%emt 0:02:18]} 20. Nxf8+ {[%emt 0:00:17]} 1-0

[Event "Portugal Open 2020"]
[Site "Lisbon"]
[Date "2020.01.26"]
[Round "2.5"]
[White "Indjic, Aleksandar"]
[Black "Jaracz, Barbara"]
[Result "1-0"]
[ECO "D02"]
[WhiteElo "2622"]
[BlackElo "2200"]
[Annotator "ChessBase"]
[PlyCount "101"]
[EventDate "2020.01.25"]
[EventType "swiss"]
[EventCountry "POR"]
[SourceTitle "playchess.com"]
[Source "ChessBase"]
[SourceQuality "1"]
[TimeControl "5400+30"]

1. Nf3 {[%emt 0:04:09]} d5 {[%emt 0:00:00]} 2. d4 {[%emt 0:00:55]} Nf6 {[%emt 0:00:09]} 3. c4 {[%emt 0:01:19]} c6 {[%emt 0:00:07]} 4. Qc2 {[%emt 0:00:13]} dxc4 {[%emt 0:02:14]} 5. Qxc4 {[%emt 0:00:35]} Bf5 {[%emt 0:00:08]} 6. g3 {[%emt 0:00:23]} e6 {[%emt 0:00:34]} 7. Bg2 {[%emt 0:00:11]} Be7 {[%emt 0:00:56]} 8. O-O {[%emt 0:00:56]} Nbd7 {[%emt 0:01:03]} 9. e3 {[%emt 0:01:48]} O-O {[%emt 0:02:16]} 10. Nc3 {[%emt 0:01:44]} Ne4 {[%emt 0:11:22]} 11. Rd1 {[%emt 0:03:28]} Rc8 {[%emt 0:02:39]} 12. Qe2 {[%emt 0:01:22]} Qc7 {[%emt 0:01:46]} 13. Nh4 {[%emt 0:02:58]} Nxc3 {[%emt 0:12:07]} 14. bxc3 {[%emt 0:00:13]} Bxh4 {[%emt 0:00:05]} 15. gxh4 {[%emt 0:00:15]} Nf6 16. e4 {[%emt 0:04:23]} Bg4 {[%emt 0:04:38]} 17. f3 {[%emt 0:05:09]} Bh5 {[%emt 0:00:26]} 18. c4 {[%emt 0:06:02]} Rfd8 {[%emt 0:17:21]} 19. Qe3 {[%emt 0:10:09]} e5 {[%emt 0:03:10]} 20. Bb2 {[%emt 0:01:25]} exd4 {[%emt 0:05:16]} 21. Bxd4 {[%emt 0:01:31]} Bg6 {[%emt 0:06:28]} 22. Bh3 {[%emt 0:04:47]} Ra8 {[%emt 0:00:59]} 23. Bxa7 {[%emt 0:08:13]} Rxd1+ {[%emt 0:07:04]} 24. Rxd1 {[%emt 0:00:53]} Rd8 {[%emt 0:00:03]} 25. Rxd8+ {[%emt 0:02:01]} Qxd8 {[%emt 0:00:03]} 26. Qd4 {[%emt 0:01:47]} Qa5 {[%emt 0:00:26]} 27. Bb6 {[%emt 0:01:07]} Qe1+ {[%emt 0:00:07]} 28. Bf1 {[%emt 0:00:07]} h6 {[%emt 0:00:17]} 29. Qf2 {[%emt 0:00:30]} Qb1 {[%emt 0:00:58]} 30. Bd4 {[%emt 0:00:27]} Nh5 {[%emt 0:00:39]} 31. Qd2 {[%emt 0:00:38]} f6 {[%emt 0:02:33]} 32. Kf2 {[%emt 0:01:42]} Bf7 {[%emt 0:00:14]} 33. Qb2 {[%emt 0:12:24]} Qd1 {[%emt 0:00:15]} 34. Be3 {[%emt 0:00:30]} Qd6 {[%emt 0:03:40]} 35. Kg1 {[%emt 0:00:18]} Qd1 {[%emt 0:00:15]} 36. Kg2 {[%emt 0:01:48]} Be6 {[%emt 0:01:11]} 37. Qe2 {[%emt 0:03:14]} Qb1 {[%emt 0:00:57]} 38. Kf2 {[%emt 0:00:20]} b5 {[%emt 0:03:46]} 39. cxb5 {[%emt 0:04:03]} cxb5 {[%emt 0:00:05]} 40. a3 {[%emt 0:00:45]} Bc4 {[%emt 0:00:58]} 41. Qe1 {[%emt 0:00:14]} Qb2+ {[%emt 0:02:46]} 42. Qd2 {[%emt 0:00:13]} Qxd2+ {[%emt 0:04:06]} 43. Bxd2 {[%emt 0:00:02]} Bxf1 {[%emt 0:00:05]} 44. Kxf1 {[%emt 0:00:10]} Kf7 {[%emt 0:00:03]} 45. Ke2 {[%emt 0:00:12]} Ke6 46. Kd3 {[%emt 0:00:27]} f5 {[%emt 0:05:15]} 47. exf5+ {[%emt 0:01:55]} Kxf5 {[%emt 0:01:28]} 48. Kc3 {[%emt 0:00:13]} Nf6 49. Kb4 {[%emt 0:00:08]} Nd7 {[%emt 0:01:01]} 50. Kxb5 {[%emt 0:00:07]} Ne5 {[%emt 0:00:04]} 51. a4 {[%emt 0:00:16] Ke4} 1-0